[Event "Titled Tuesday Blitz June 6 Early 2023"]
[White "Bryakin, Mikhail"]
[Black "Bjerre, Jonas Buhl"]
[WhiteFideId "4165314"]
[BlackFideId "1444948"]
[WhiteElo "2464"]
[BlackElo "2525"]
[Result "1-0"]
[Round "4"]
[TimeControl "180+2"]
[Date "2023.06.06"]
[WhiteClock "0:00:09"]
[BlackClock "0:00:03"]
[Board "14"]

1. c4 {[%clk 0:03:00]}  Nf6 {[%clk 0:02:58]} 2. Nc3 {[%clk 0:03:00]}  c5 {[%clk 0:02:58]} 3. Nf3 {[%clk 0:02:55]}  Nc6 {[%clk 0:02:57]} 4. d4 {[%clk 0:02:53]}  cxd4 {[%clk 0:02:55]} 5. Nxd4 {[%clk 0:02:54]}  e6 {[%clk 0:02:56]} 6. e4 {[%clk 0:02:53]}  Bb4 {[%clk 0:02:51]} 7. Nxc6 {[%clk 0:02:52]}  bxc6 {[%clk 0:02:51]} 8. Bd3 {[%clk 0:02:51]}  e5 {[%clk 0:02:50]} 9. O-O {[%clk 0:02:51]}  O-O {[%clk 0:02:50]} 10. h3 {[%clk 0:02:48]}  Bxc3 {[%clk 0:02:46]} 11. bxc3 {[%clk 0:02:48]}  d6 {[%clk 0:02:46]} 12. f4 {[%clk 0:02:16]}  Qe7 {[%clk 0:02:30]} 13. Qf3 {[%clk 0:01:59]}  a5 {[%clk 0:02:16]} 14. fxe5 {[%clk 0:01:45]}  dxe5 {[%clk 0:02:05]} 15. Bg5 {[%clk 0:01:45]}  Qc5+ {[%clk 0:02:04]} 16. Be3 {[%clk 0:01:39]}  Qa3 {[%clk 0:01:58]} 17. Qg3 {[%clk 0:01:14]}  Nh5 {[%clk 0:01:41]} 18. Qxe5 {[%clk 0:01:11]}  Rd8 {[%clk 0:01:24]} 19. Qxh5 {[%clk 0:01:08]}  Be6 {[%clk 0:01:21]} 20. Be2 {[%clk 0:00:59]}  Qxc3 {[%clk 0:01:20]} 21. Qc5 {[%clk 0:00:56]}  a4 {[%clk 0:01:18]} 22. a3 {[%clk 0:00:53]}  Rab8 {[%clk 0:01:02]} 23. Rac1 {[%clk 0:00:53]}  Qb2 {[%clk 0:01:01]} 24. Bg4 {[%clk 0:00:50]}  Bxg4 {[%clk 0:00:56]} 25. hxg4 {[%clk 0:00:51]}  Re8 {[%clk 0:00:51]} 26. Qf5 {[%clk 0:00:38]}  f6 {[%clk 0:00:49]} 27. Bc5 {[%clk 0:00:25]}  h6 {[%clk 0:00:29]} 28. Qf2 {[%clk 0:00:13]}  Qe5 {[%clk 0:00:24]} 29. Rfe1 {[%clk 0:00:08]}  Qg5 {[%clk 0:00:21]} 30. Qf5 {[%clk 0:00:06]}  Qd2 {[%clk 0:00:21]} 31. Bb4 {[%clk 0:00:06]}  Qd3 {[%clk 0:00:19]} 32. Qf3 {[%clk 0:00:06]}  Qd4+ {[%clk 0:00:19]} 33. Qe3 {[%clk 0:00:07]}  Qe5 {[%clk 0:00:19]} 34. Rcd1 {[%clk 0:00:07]}  Qb2 {[%clk 0:00:18]} 35. Rd2 {[%clk 0:00:06]}  Qb3 {[%clk 0:00:14]} 36. Rd3 {[%clk 0:00:05]}  Qxc4 {[%clk 0:00:14]} 37. Rc1 {[%clk 0:00:05]}  Qe6 {[%clk 0:00:14]} 38. Qf3 {[%clk 0:00:04]}  Qxe4 {[%clk 0:00:13]} 39. Qxe4 {[%clk 0:00:04]}  Rxe4 {[%clk 0:00:14]} 40. Rxc6 {[%clk 0:00:05]}  Rxg4 {[%clk 0:00:15]} 41. Rc7 {[%clk 0:00:05]}  Re8 {[%clk 0:00:14]} 42. Kf2 {[%clk 0:00:05]}  Ree4 {[%clk 0:00:13]} 43. Rcc3 {[%clk 0:00:04]}  Ref4+ {[%clk 0:00:14]} 44. Rf3 {[%clk 0:00:05]}  Rd4 {[%clk 0:00:14]} 45. Rcd3 {[%clk 0:00:05]}  Rc4 {[%clk 0:00:14]} 46. Rc3 {[%clk 0:00:05]}  Rcd4 {[%clk 0:00:14]} 47. Rg3 {[%clk 0:00:05]}  Rgf4+ {[%clk 0:00:15]} 48. Rcf3 {[%clk 0:00:05]}  Rfe4 {[%clk 0:00:14]} 49. Bc3 {[%clk 0:00:05]}  Rc4 {[%clk 0:00:12]} 50. Bxf6 {[%clk 0:00:05]}  Rc2+ {[%clk 0:00:12]} 51. Kg1 {[%clk 0:00:05]}  g5 {[%clk 0:00:13]} 52. Bc3 {[%clk 0:00:03]}  Kh7 {[%clk 0:00:12]} 53. Bb4 {[%clk 0:00:04]}  Kg6 {[%clk 0:00:12]} 54. Re3 {[%clk 0:00:04]}  Rd4 {[%clk 0:00:12]} 55. Rd3 {[%clk 0:00:05]}  Re4 {[%clk 0:00:12]} 56. Rge3 {[%clk 0:00:04]}  Rg4 {[%clk 0:00:13]} 57. Rd2 {[%clk 0:00:04]}  Rc1+ {[%clk 0:00:12]} 58. Kf2 {[%clk 0:00:05]}  Rf4+ {[%clk 0:00:12]} 59. Rf3 {[%clk 0:00:05]}  Re4 {[%clk 0:00:12]} 60. Rd6+ {[%clk 0:00:06]}  Kh5 {[%clk 0:00:12]} 61. Rff6 {[%clk 0:00:06]}  Kg4 {[%clk 0:00:11]} 62. Rxh6 {[%clk 0:00:06]}  Rc2+ {[%clk 0:00:11]} 63. Rd2 {[%clk 0:00:06]}  Rf4+ {[%clk 0:00:10]} 64. Ke2 {[%clk 0:00:06]}  Rcc4 {[%clk 0:00:09]} 65. Rhd6 {[%clk 0:00:05]}  Rce4+ {[%clk 0:00:09]} 66. Kd1 {[%clk 0:00:06]}  Rf1+ {[%clk 0:00:09]} 67. Kc2 {[%clk 0:00:06]}  Kg3 {[%clk 0:00:07]} 68. R6d3+ {[%clk 0:00:06]}  Kh2 {[%clk 0:00:08]} 69. g3+ {[%clk 0:00:06]}  Kh3 {[%clk 0:00:07]} 70. Bd6 {[%clk 0:00:07]}  g4 {[%clk 0:00:07]} 71. Kc3 {[%clk 0:00:07]}  Rb1 {[%clk 0:00:07]} 72. Kc2 {[%clk 0:00:07]}  Ra1 {[%clk 0:00:06]} 73. Rc3 {[%clk 0:00:06]}  Ra2+ {[%clk 0:00:06]} 74. Kd3 {[%clk 0:00:07]}  Rxd2+ {[%clk 0:00:04]} 75. Kxd2 {[%clk 0:00:08]}  Rd4+ {[%clk 0:00:04]} 76. Rd3 {[%clk 0:00:08]}  Rc4 {[%clk 0:00:05]} 77. Bb4 {[%clk 0:00:08]}  Re4 {[%clk 0:00:05]} 78. Bd6 {[%clk 0:00:08]}  Rc4 {[%clk 0:00:05]} 79. Bf4 {[%clk 0:00:09]}  Kg2 {[%clk 0:00:04]} 80. Rc3 {[%clk 0:00:08]}  Re4 {[%clk 0:00:04]} 81. Rc5 {[%clk 0:00:08]}  Kf3 {[%clk 0:00:03]} 82. Kc3 {[%clk 0:00:09]}  Ke2 {[%clk 0:00:03]} 83. Rc4 {[%clk 0:00:09]} 1-0


[Site "https://www.chess.com"]

[Event "Titled Tuesday Blitz June 6 Early 2023"]
[White "Melikyan, Gnel"]
[Black "Elsa167"]
[WhiteFideId "54109990"]
[WhiteElo "2138"]
[BlackElo "2918"]
[Result "1/2-1/2"]
[Round "4"]
[TimeControl "180+2"]
[Date "2023.06.06"]
[WhiteClock "0:00:07"]
[BlackClock "0:00:07"]
[Board "17"]

1. e4 {[%clk 0:03:00]}  e6 {[%clk 0:03:00]} 2. d4 {[%clk 0:02:59]}  d5 {[%clk 0:03:01]} 3. e5 {[%clk 0:02:59]}  c5 {[%clk 0:03:00]} 4. c3 {[%clk 0:03:00]}  Nc6 {[%clk 0:03:01]} 5. Nf3 {[%clk 0:03:00]}  Qb6 {[%clk 0:03:01]} 6. a3 {[%clk 0:03:00]}  c4 {[%clk 0:03:02]} 7. Be2 {[%clk 0:02:59]}  Bd7 {[%clk 0:03:01]} 8. O-O {[%clk 0:02:58]}  Na5 {[%clk 0:03:01]} 9. Nbd2 {[%clk 0:02:57]}  Ne7 {[%clk 0:03:01]} 10. Re1 {[%clk 0:02:49]}  Nc8 {[%clk 0:03:01]} 11. g3 {[%clk 0:02:49]}  Qc7 {[%clk 0:03:01]} 12. Bf1 {[%clk 0:02:46]}  h6 {[%clk 0:03:00]} 13. h4 {[%clk 0:02:42]}  Nb6 {[%clk 0:03:00]} 14. Rb1 {[%clk 0:02:40]}  Ba4 {[%clk 0:03:00]} 15. Qe2 {[%clk 0:02:38]}  Bc2 {[%clk 0:02:58]} 16. Ra1 {[%clk 0:02:37]}  Bh7 {[%clk 0:02:36]} 17. b4 {[%clk 0:02:07]}  cxb3 {[%clk 0:02:16]} 18. Qb5+ {[%clk 0:02:06]}  Nd7 {[%clk 0:02:16]} 19. Nxb3 {[%clk 0:02:05]}  Nc4 {[%clk 0:02:11]} 20. Bxc4 {[%clk 0:01:24]}  Qxc4 {[%clk 0:02:11]} 21. Qxc4 {[%clk 0:01:23]}  dxc4 {[%clk 0:02:12]} 22. Na5 {[%clk 0:01:22]}  Nb6 {[%clk 0:01:43]} 23. Nxb7 {[%clk 0:01:11]}  Nd5 {[%clk 0:01:43]} 24. Bd2 {[%clk 0:01:07]}  Kd7 {[%clk 0:01:24]} 25. Na5 {[%clk 0:01:05]}  Rc8 {[%clk 0:01:23]} 26. Ra2 {[%clk 0:01:00]}  Be7 {[%clk 0:01:17]} 27. Rb2 {[%clk 0:00:57]}  Rc7 {[%clk 0:00:54]} 28. a4 {[%clk 0:00:38]}  Nb6 {[%clk 0:00:45]} 29. Ra1 {[%clk 0:00:37]}  Be4 {[%clk 0:00:45]} 30. Nh2 {[%clk 0:00:32]}  Rcc8 {[%clk 0:00:35]} 31. Nf1 {[%clk 0:00:30]}  Rb8 {[%clk 0:00:32]} 32. Ne3 {[%clk 0:00:29]}  Bd3 {[%clk 0:00:33]} 33. Rb5 {[%clk 0:00:20]}  Rhc8 {[%clk 0:00:27]} 34. Ra2 {[%clk 0:00:20]}  a6 {[%clk 0:00:24]} 35. Rbb2 {[%clk 0:00:20]}  Bd8 {[%clk 0:00:17]} 36. f3 {[%clk 0:00:14]}  g5 {[%clk 0:00:15]} 37. Kf2 {[%clk 0:00:14]}  gxh4 {[%clk 0:00:15]} 38. Ng4 {[%clk 0:00:12]}  hxg3+ {[%clk 0:00:14]} 39. Kxg3 {[%clk 0:00:12]}  Nd5 {[%clk 0:00:12]} 40. Nb7 {[%clk 0:00:12]}  h5 {[%clk 0:00:10]} 41. Nh6 {[%clk 0:00:09]}  h4+ {[%clk 0:00:10]} 42. Kh3 {[%clk 0:00:09]}  Be7 {[%clk 0:00:06]} 43. Nxf7 {[%clk 0:00:09]}  Bf1+ {[%clk 0:00:04]} 44. Kh2 {[%clk 0:00:08]}  h3 {[%clk 0:00:05]} 45. Nfd6 {[%clk 0:00:08]}  Bxd6 {[%clk 0:00:05]} 46. exd6 {[%clk 0:00:08]}  Rg8 {[%clk 0:00:03]} 47. Be1 {[%clk 0:00:07]}  Rg2+ {[%clk 0:00:03]} 48. Kh1 {[%clk 0:00:06]}  Rxb7 {[%clk 0:00:03]} 49. Rxb7+ {[%clk 0:00:07]}  Kxd6 {[%clk 0:00:03]} 50. Rxg2 {[%clk 0:00:07]}  Bxg2+ {[%clk 0:00:04]} 51. Kh2 {[%clk 0:00:07]}  Bxf3 {[%clk 0:00:05]} 52. Bg3+ {[%clk 0:00:08]}  Kc6 {[%clk 0:00:05]} 53. Rh7 {[%clk 0:00:08]}  Nxc3 {[%clk 0:00:04]} 54. Rc7+ {[%clk 0:00:08]}  Kd5 {[%clk 0:00:04]} 55. Be5 {[%clk 0:00:08]}  Nxa4 {[%clk 0:00:04]} 56. Ra7 {[%clk 0:00:08]}  c3 {[%clk 0:00:03]} 57. Rxa6 {[%clk 0:00:08]}  c2 {[%clk 0:00:03]} 58. Bf4 {[%clk 0:00:08]}  Nc3 {[%clk 0:00:04]} 59. Ra5+ {[%clk 0:00:08]}  Kxd4 {[%clk 0:00:04]} 60. Ra6 {[%clk 0:00:07]}  Ne2 {[%clk 0:00:03]} 61. Bd2 {[%clk 0:00:07]}  Bd5 {[%clk 0:00:02]} 62. Kxh3 {[%clk 0:00:06]}  c1=Q {[%clk 0:00:03]} 63. Bxc1 {[%clk 0:00:07]}  Nxc1 {[%clk 0:00:04]} 64. Kg4 {[%clk 0:00:07]}  Nd3 {[%clk 0:00:04]} 65. Ra5 {[%clk 0:00:06]}  e5 {[%clk 0:00:04]} 66. Ra4+ {[%clk 0:00:06]}  Ke3 {[%clk 0:00:05]} 67. Kf5 {[%clk 0:00:06]}  e4 {[%clk 0:00:05]} 68. Ra5 {[%clk 0:00:07]}  Kd4 {[%clk 0:00:06]} 69. Ra4+ {[%clk 0:00:06]}  Bc4 {[%clk 0:00:06]} 70. Rxc4+ {[%clk 0:00:06]}  Kxc4 {[%clk 0:00:07]} 71. Kxe4 {[%clk 0:00:07]} 1/2-1/2


[Site "https://www.chess.com"]

[Event "Titled Tuesday Blitz June 6 Early 2023"]
[White "Aravindh, Chithambaram VR."]
[Black "Manukyan, Sargis V."]
[WhiteFideId "5072786"]
[BlackFideId "13303465"]
[WhiteElo "2596"]
[BlackElo "2236"]
[Result "1-0"]
[Round "4"]
[TimeControl "180+2"]
[Date "2023.06.06"]
[WhiteClock "0:00:54"]
[BlackClock "0:00:15"]
[Board "18"]

1. b3 {[%clk 0:02:59]}  a5 {[%clk 0:02:57]} 2. Bb2 {[%clk 0:03:00]}  a4 {[%clk 0:02:56]} 3. b4 {[%clk 0:03:01]}  d5 {[%clk 0:02:47]} 4. Nf3 {[%clk 0:03:00]}  Nf6 {[%clk 0:02:46]} 5. e3 {[%clk 0:02:59]}  e6 {[%clk 0:02:45]} 6. a3 {[%clk 0:03:00]}  c5 {[%clk 0:02:44]} 7. b5 {[%clk 0:02:55]}  Nbd7 {[%clk 0:02:44]} 8. c4 {[%clk 0:02:56]}  Nb6 {[%clk 0:02:43]} 9. d3 {[%clk 0:02:49]}  dxc4 {[%clk 0:02:37]} 10. dxc4 {[%clk 0:02:50]}  Qxd1+ {[%clk 0:02:37]} 11. Kxd1 {[%clk 0:02:51]}  Bd6 {[%clk 0:02:34]} 12. Bd3 {[%clk 0:02:49]}  O-O {[%clk 0:02:14]} 13. Ke2 {[%clk 0:02:49]}  Re8 {[%clk 0:02:07]} 14. Rd1 {[%clk 0:02:32]}  e5 {[%clk 0:02:00]} 15. e4 {[%clk 0:02:29]}  Nh5 {[%clk 0:01:41]} 16. g3 {[%clk 0:02:26]}  f5 {[%clk 0:01:15]} 17. Nc3 {[%clk 0:02:13]}  Nf6 {[%clk 0:01:13]} 18. Bb1 {[%clk 0:01:57]}  Nxc4 {[%clk 0:00:49]} 19. Ba2 {[%clk 0:01:57]}  Be6 {[%clk 0:00:49]} 20. exf5 {[%clk 0:01:56]}  Bf7 {[%clk 0:00:49]} 21. Ng5 {[%clk 0:01:53]}  Be7 {[%clk 0:00:37]} 22. Nxf7 {[%clk 0:00:57]}  Nxb2 {[%clk 0:00:36]} 23. Rd2 {[%clk 0:00:57]}  c4 {[%clk 0:00:31]} 24. Ng5 {[%clk 0:00:57]}  Bxa3 {[%clk 0:00:28]} 25. Nb1 {[%clk 0:00:55]}  h5 {[%clk 0:00:15]} 26. Nxa3 {[%clk 0:00:54]} 1-0


[Site "https://www.chess.com"]

[Event "Titled Tuesday Blitz June 6 Early 2023"]
[White "Svane, Rasmus"]
[Black "Darini, Pouria"]
[WhiteFideId "4657101"]
[BlackFideId "12502200"]
[WhiteElo "2601"]
[BlackElo "2482"]
[Result "1-0"]
[Round "4"]
[TimeControl "180+2"]
[Date "2023.06.06"]
[WhiteClock "0:01:28"]
[BlackClock "0:00:03"]
[Board "20"]

1. Nf3 {[%clk 0:02:59]}  d5 {[%clk 0:02:59]} 2. g3 {[%clk 0:02:58]}  Nd7 {[%clk 0:02:59]} 3. d4 {[%clk 0:02:58]}  Nb6 {[%clk 0:02:59]} 4. Nc3 {[%clk 0:02:58]}  Nf6 {[%clk 0:02:47]} 5. Bg2 {[%clk 0:02:57]}  Bf5 {[%clk 0:02:46]} 6. Nh4 {[%clk 0:02:58]}  Bg6 {[%clk 0:02:31]} 7. a4 {[%clk 0:02:57]}  a5 {[%clk 0:02:29]} 8. Nxg6 {[%clk 0:02:57]}  hxg6 {[%clk 0:02:30]} 9. e4 {[%clk 0:02:58]}  dxe4 {[%clk 0:02:31]} 10. Nxe4 {[%clk 0:02:59]}  Nxe4 {[%clk 0:02:31]} 11. Bxe4 {[%clk 0:03:00]}  c6 {[%clk 0:02:32]} 12. c3 {[%clk 0:02:58]}  e6 {[%clk 0:02:33]} 13. h4 {[%clk 0:02:58]}  Be7 {[%clk 0:02:33]} 14. h5 {[%clk 0:02:58]}  g5 {[%clk 0:02:05]} 15. Qb3 {[%clk 0:02:32]}  Qc7 {[%clk 0:01:45]} 16. Kf1 {[%clk 0:02:26]}  Nd5 {[%clk 0:01:43]} 17. Kg2 {[%clk 0:02:18]}  O-O-O {[%clk 0:01:07]} 18. Bd2 {[%clk 0:02:15]}  Bf6 {[%clk 0:00:43]} 19. Rad1 {[%clk 0:02:15]}  e5 {[%clk 0:00:34]} 20. c4 {[%clk 0:02:14]}  Nb4 {[%clk 0:00:33]} 21. d5 {[%clk 0:02:05]}  c5 {[%clk 0:00:27]} 22. Bxb4 {[%clk 0:02:00]}  Qb6 {[%clk 0:00:21]} 23. Qf3 {[%clk 0:01:38]}  Qxb4 {[%clk 0:00:21]} 24. d6 {[%clk 0:01:38]}  Kb8 {[%clk 0:00:11]} 25. h6 {[%clk 0:01:36]}  g4 {[%clk 0:00:05]} 26. Qxg4 {[%clk 0:01:34]}  Rxh6 {[%clk 0:00:05]} 27. Rxh6 {[%clk 0:01:32]}  gxh6 {[%clk 0:00:05]} 28. Qf3 {[%clk 0:01:32]}  Qxc4 {[%clk 0:00:03]} 29. Bd5 {[%clk 0:01:28]}  Qc2 {[%clk 0:00:03]} 30. Qxf6 {[%clk 0:01:28]}  Qxd1 {[%clk 0:00:03]} 31. Qxd8+ {[%clk 0:01:28]}  Ka7 {[%clk 0:00:03]} 32. Qxa5+ {[%clk 0:01:28]} 1-0


[Site "https://www.chess.com"]

[Event "Titled Tuesday Blitz June 6 Early 2023"]
[White "Terry, Renato"]
[Black "Khumalo, Keith"]
[WhiteFideId "3803457"]
[BlackFideId "14319470"]
[WhiteElo "2575"]
[BlackElo "2056"]
[Result "1-0"]
[Round "4"]
[TimeControl "180+2"]
[Date "2023.06.06"]
[WhiteClock "0:01:37"]
[BlackClock "0:01:30"]
[Board "23"]

1. e4 {[%clk 0:03:00]}  c5 {[%clk 0:02:56]} 2. Nf3 {[%clk 0:03:00]}  e6 {[%clk 0:02:56]} 3. Nc3 {[%clk 0:03:00]}  a6 {[%clk 0:02:55]} 4. g3 {[%clk 0:02:59]}  b5 {[%clk 0:02:53]} 5. Bg2 {[%clk 0:02:59]}  Bb7 {[%clk 0:02:54]} 6. d3 {[%clk 0:02:57]}  d6 {[%clk 0:02:51]} 7. O-O {[%clk 0:02:55]}  Nf6 {[%clk 0:02:49]} 8. Ng5 {[%clk 0:02:38]}  h6 {[%clk 0:02:43]} 9. Nh3 {[%clk 0:02:38]}  Qc7 {[%clk 0:02:38]} 10. f4 {[%clk 0:02:36]}  Be7 {[%clk 0:02:33]} 11. f5 {[%clk 0:02:34]}  e5 {[%clk 0:02:30]} 12. Nf2 {[%clk 0:02:29]}  Nc6 {[%clk 0:02:28]} 13. Nd5 {[%clk 0:02:23]}  Nxd5 {[%clk 0:02:27]} 14. exd5 {[%clk 0:02:24]}  Nd4 {[%clk 0:02:27]} 15. g4 {[%clk 0:02:24]}  b4 {[%clk 0:02:24]} 16. c3 {[%clk 0:02:24]}  Nb5 {[%clk 0:02:18]} 17. cxb4 {[%clk 0:02:03]}  cxb4 {[%clk 0:02:18]} 18. Be3 {[%clk 0:02:04]}  Bg5 {[%clk 0:02:14]} 19. Rc1 {[%clk 0:02:04]}  Qd8 {[%clk 0:01:55]} 20. Qd2 {[%clk 0:01:58]}  Bxe3 {[%clk 0:01:48]} 21. Qxe3 {[%clk 0:01:59]}  Nd4 {[%clk 0:01:48]} 22. Rc4 {[%clk 0:01:59]}  O-O {[%clk 0:01:45]} 23. Rfc1 {[%clk 0:01:51]}  Qa5 {[%clk 0:01:45]} 24. f6 {[%clk 0:01:48]}  Bxd5 {[%clk 0:01:43]} 25. fxg7 {[%clk 0:01:38]}  Kxg7 {[%clk 0:01:44]} 26. Rxd4 {[%clk 0:01:38]}  Bxg2 {[%clk 0:01:38]} 27. Rxd6 {[%clk 0:01:38]}  Bb7 {[%clk 0:01:31]} 28. Qxh6+ {[%clk 0:01:37]}  Kg8 {[%clk 0:01:30]} 29. Qg5+ {[%clk 0:01:37]} 1-0


[Site "https://www.chess.com"]

[Event "Titled Tuesday Blitz June 6 Early 2023"]
[White "Gorovets, Andrey"]
[Black "Kashlinskaya, Alina"]
[WhiteFideId "13504037"]
[BlackFideId "4198026"]
[WhiteElo "2459"]
[BlackElo "2383"]
[Result "1/2-1/2"]
[Round "4"]
[TimeControl "180+2"]
[Date "2023.06.06"]
[WhiteClock "0:01:08"]
[BlackClock "0:00:20"]
[Board "24"]

1. Nf3 {[%clk 0:03:00]}  Nf6 {[%clk 0:02:59]} 2. g3 {[%clk 0:03:01]}  g6 {[%clk 0:02:59]} 3. Bg2 {[%clk 0:03:01]}  Bg7 {[%clk 0:03:00]} 4. c4 {[%clk 0:03:01]}  O-O {[%clk 0:03:00]} 5. O-O {[%clk 0:03:01]}  c5 {[%clk 0:03:00]} 6. d4 {[%clk 0:03:01]}  cxd4 {[%clk 0:02:58]} 7. Nxd4 {[%clk 0:03:02]}  d5 {[%clk 0:02:58]} 8. cxd5 {[%clk 0:03:00]}  Nxd5 {[%clk 0:02:58]} 9. Nb5 {[%clk 0:03:00]}  Be6 {[%clk 0:02:55]} 10. N1c3 {[%clk 0:02:51]}  Nxc3 {[%clk 0:02:49]} 11. Nxc3 {[%clk 0:02:46]}  Nc6 {[%clk 0:02:49]} 12. Qa4 {[%clk 0:02:36]}  Qb6 {[%clk 0:02:00]} 13. Qa3 {[%clk 0:02:17]}  Rfd8 {[%clk 0:01:53]} 14. Be3 {[%clk 0:02:16]}  Qb4 {[%clk 0:01:44]} 15. Qxb4 {[%clk 0:02:10]}  Nxb4 {[%clk 0:01:45]} 16. Rfc1 {[%clk 0:02:05]}  Nc6 {[%clk 0:01:40]} 17. Rc2 {[%clk 0:01:52]}  Bf5 {[%clk 0:01:37]} 18. Ne4 {[%clk 0:01:47]}  Nb4 {[%clk 0:01:33]} 19. Rc7 {[%clk 0:01:47]}  Nd5 {[%clk 0:01:33]} 20. Rxb7 {[%clk 0:01:44]}  Nxe3 {[%clk 0:01:32]} 21. fxe3 {[%clk 0:01:45]}  Rab8 {[%clk 0:01:16]} 22. Rxa7 {[%clk 0:01:39]}  Rxb2 {[%clk 0:01:15]} 23. Re1 {[%clk 0:01:38]}  Bxe4 {[%clk 0:00:37]} 24. Bxe4 {[%clk 0:01:39]}  Bc3 {[%clk 0:00:37]} 25. Rf1 {[%clk 0:01:33]}  Rxe2 {[%clk 0:00:37]} 26. Rxe7 {[%clk 0:01:31]}  Rxe3 {[%clk 0:00:37]} 27. Rfxf7 {[%clk 0:01:22]}  Rxe4 {[%clk 0:00:32]} 28. Rxh7 {[%clk 0:01:15]}  Rxe7 {[%clk 0:00:31]} 29. Rxe7 {[%clk 0:01:16]}  Rd1+ {[%clk 0:00:30]} 30. Kf2 {[%clk 0:01:14]}  Rd2+ {[%clk 0:00:31]} 31. Re2 {[%clk 0:01:14]}  Bd4+ {[%clk 0:00:23]} 32. Ke1 {[%clk 0:01:10]}  Rxe2+ {[%clk 0:00:21]} 33. Kxe2 {[%clk 0:01:11]}  Kf7 {[%clk 0:00:21]} 34. Kf3 {[%clk 0:01:10]}  Kf6 {[%clk 0:00:21]} 35. Kg4 {[%clk 0:01:09]}  Bg1 {[%clk 0:00:20]} 36. h4 {[%clk 0:01:08]}  Bf2 {[%clk 0:00:20]} 37. a4 {[%clk 0:01:08]}  Be1 {[%clk 0:00:20]} 38. Kf4 {[%clk 0:01:08]}  Ke6 {[%clk 0:00:20]} 1/2-1/2


[Site "https://www.chess.com"]

[Event "Titled Tuesday Blitz June 6 Early 2023"]
[White "Chen, Justin"]
[Black "Petrosyan, Manuel"]
[WhiteFideId "2098199"]
[BlackFideId "13300857"]
[WhiteElo "2289"]
[BlackElo "2576"]
[Result "0-1"]
[Round "4"]
[TimeControl "180+2"]
[Date "2023.06.06"]
[WhiteClock "0:00:01"]
[BlackClock "0:00:26"]
[Board "26"]

1. c4 {[%clk 0:03:00]}  e5 {[%clk 0:02:59]} 2. d3 {[%clk 0:02:57]}  Nf6 {[%clk 0:02:57]} 3. Nf3 {[%clk 0:02:57]}  Nc6 {[%clk 0:02:56]} 4. a3 {[%clk 0:02:53]}  g6 {[%clk 0:02:52]} 5. b4 {[%clk 0:02:50]}  Bg7 {[%clk 0:02:48]} 6. Bb2 {[%clk 0:02:50]}  d6 {[%clk 0:02:41]} 7. Nbd2 {[%clk 0:02:50]}  O-O {[%clk 0:02:40]} 8. e3 {[%clk 0:02:47]}  Re8 {[%clk 0:02:40]} 9. Be2 {[%clk 0:02:47]}  a5 {[%clk 0:02:35]} 10. Qb3 {[%clk 0:02:41]}  axb4 {[%clk 0:02:23]} 11. axb4 {[%clk 0:02:42]}  Rxa1+ {[%clk 0:02:23]} 12. Bxa1 {[%clk 0:02:43]}  e4 {[%clk 0:02:24]} 13. dxe4 {[%clk 0:02:42]}  Nxe4 {[%clk 0:02:23]} 14. Bxg7 {[%clk 0:02:43]}  Kxg7 {[%clk 0:02:18]} 15. O-O {[%clk 0:02:36]}  Qf6 {[%clk 0:02:15]} 16. Rc1 {[%clk 0:02:04]}  Nxd2 {[%clk 0:02:05]} 17. Nxd2 {[%clk 0:02:05]}  Nd4 {[%clk 0:02:04]} 18. Qd3 {[%clk 0:01:55]}  Bf5 {[%clk 0:01:41]} 19. e4 {[%clk 0:00:52]}  Nxe2+ {[%clk 0:01:01]} 20. Qxe2 {[%clk 0:00:53]}  Qb2 {[%clk 0:01:01]} 21. Rb1 {[%clk 0:00:53]}  Qd4 {[%clk 0:00:46]} 22. Re1 {[%clk 0:00:46]}  c6 {[%clk 0:00:45]} 23. Qe3 {[%clk 0:00:34]}  Qb2 {[%clk 0:00:44]} 24. Rb1 {[%clk 0:00:27]}  Qf6 {[%clk 0:00:39]} 25. Qd3 {[%clk 0:00:21]}  Be6 {[%clk 0:00:34]} 26. f3 {[%clk 0:00:21]}  Qe5 {[%clk 0:00:32]} 27. Rc1 {[%clk 0:00:11]}  Ra8 {[%clk 0:00:31]} 28. Qc3 {[%clk 0:00:11]}  Ra2 {[%clk 0:00:29]} 29. Qxe5+ {[%clk 0:00:10]}  dxe5 {[%clk 0:00:30]} 30. Nb3 {[%clk 0:00:10]}  b6 {[%clk 0:00:28]} 31. Rc3 {[%clk 0:00:07]}  Ra3 {[%clk 0:00:27]} 32. Kf2 {[%clk 0:00:01]}  b5 {[%clk 0:00:27]} 33. Ke3 {[%clk 0:00:01]}  bxc4 {[%clk 0:00:26]} 0-1


[Site "https://www.chess.com"]

[Event "Titled Tuesday Blitz June 6 Early 2023"]
[White "Nepomniachtchi, Ian"]
[Black "Novikov, Evgenij"]
[WhiteFideId "4168119"]
[BlackFideId "4125380"]
[WhiteElo "2781"]
[BlackElo "2242"]
[Result "1-0"]
[Round "4"]
[TimeControl "180+2"]
[Date "2023.06.06"]
[WhiteClock "0:00:50"]
[BlackClock "0:00:01"]
[Board "31"]

1. e4 {[%clk 0:03:00]}  c6 {[%clk 0:02:58]} 2. d4 {[%clk 0:03:00]}  d5 {[%clk 0:02:58]} 3. Nc3 {[%clk 0:03:01]}  dxe4 {[%clk 0:02:57]} 4. Nxe4 {[%clk 0:03:02]}  Nf6 {[%clk 0:02:56]} 5. Nxf6+ {[%clk 0:03:02]}  exf6 {[%clk 0:02:57]} 6. Be3 {[%clk 0:03:03]}  Bd6 {[%clk 0:02:57]} 7. Bc4 {[%clk 0:02:58]}  O-O {[%clk 0:02:56]} 8. Ne2 {[%clk 0:02:58]}  Nd7 {[%clk 0:02:49]} 9. O-O {[%clk 0:02:57]}  Re8 {[%clk 0:02:49]} 10. Qd2 {[%clk 0:02:57]}  Nf8 {[%clk 0:02:48]} 11. Bf4 {[%clk 0:02:56]}  Be6 {[%clk 0:02:45]} 12. Bb3 {[%clk 0:02:51]}  Ng6 {[%clk 0:02:37]} 13. Bg3 {[%clk 0:02:50]}  Qc7 {[%clk 0:02:34]} 14. Rfe1 {[%clk 0:02:49]}  a5 {[%clk 0:02:32]} 15. Bxe6 {[%clk 0:02:44]}  fxe6 {[%clk 0:02:26]} 16. c4 {[%clk 0:02:43]}  Rad8 {[%clk 0:02:02]} 17. Nc3 {[%clk 0:02:40]}  Bxg3 {[%clk 0:02:00]} 18. hxg3 {[%clk 0:02:40]}  e5 {[%clk 0:01:43]} 19. d5 {[%clk 0:02:37]}  Ne7 {[%clk 0:01:32]} 20. Rad1 {[%clk 0:02:37]}  cxd5 {[%clk 0:01:31]} 21. cxd5 {[%clk 0:02:38]}  Nf5 {[%clk 0:01:28]} 22. Nb5 {[%clk 0:02:30]}  Qb6 {[%clk 0:01:23]} 23. a4 {[%clk 0:02:30]}  Nd6 {[%clk 0:01:21]} 24. Qd3 {[%clk 0:02:18]}  Nxb5 {[%clk 0:01:21]} 25. axb5 {[%clk 0:02:19]}  Rd6 {[%clk 0:01:17]} 26. g4 {[%clk 0:02:18]}  Red8 {[%clk 0:01:16]} 27. g5 {[%clk 0:02:17]}  Rxd5 {[%clk 0:01:03]} 28. Qxd5+ {[%clk 0:02:09]}  Rxd5 {[%clk 0:01:04]} 29. Rxd5 {[%clk 0:02:09]}  Kf7 {[%clk 0:00:56]} 30. gxf6 {[%clk 0:02:01]}  gxf6 {[%clk 0:00:57]} 31. Red1 {[%clk 0:02:00]}  Ke6 {[%clk 0:00:55]} 32. R1d3 {[%clk 0:01:50]}  h5 {[%clk 0:00:52]} 33. g3 {[%clk 0:01:50]}  Qc7 {[%clk 0:00:47]} 34. Rd1 {[%clk 0:01:41]}  b6 {[%clk 0:00:46]} 35. b3 {[%clk 0:01:17]}  Qc2 {[%clk 0:00:43]} 36. Rd6+ {[%clk 0:01:17]}  Kf5 {[%clk 0:00:43]} 37. Re1 {[%clk 0:01:17]}  Qxb3 {[%clk 0:00:40]} 38. Rxb6 {[%clk 0:01:17]}  a4 {[%clk 0:00:38]} 39. Re3 {[%clk 0:01:15]}  Qd1+ {[%clk 0:00:36]} 40. Kh2 {[%clk 0:01:15]}  Kg5 {[%clk 0:00:23]} 41. Rb8 {[%clk 0:01:11]}  Qf1 {[%clk 0:00:16]} 42. Rg8+ {[%clk 0:01:09]}  Kf5 {[%clk 0:00:15]} 43. Rf3+ {[%clk 0:01:09]}  Ke4 {[%clk 0:00:13]} 44. Rxf6 {[%clk 0:01:09]}  Qxb5 {[%clk 0:00:13]} 45. Ra8 {[%clk 0:01:06]}  Qb3 {[%clk 0:00:08]} 46. Rfa6 {[%clk 0:00:59]}  Kf5 {[%clk 0:00:08]} 47. Rxa4 {[%clk 0:00:58]}  Qb2 {[%clk 0:00:07]} 48. Rf8+ {[%clk 0:00:56]}  Ke6 {[%clk 0:00:06]} 49. Rh4 {[%clk 0:00:53]}  Qe2 {[%clk 0:00:06]} 50. Kg2 {[%clk 0:00:53]}  Kd5 {[%clk 0:00:04]} 51. Rf3 {[%clk 0:00:53]}  Qd1 {[%clk 0:00:03]} 52. Rxh5 {[%clk 0:00:52]}  Kd4 {[%clk 0:00:02]} 53. Rh8 {[%clk 0:00:51]}  Ke4 {[%clk 0:00:01]} 54. Rhf8 {[%clk 0:00:50]}  Qe2 {[%clk 0:00:01]} 55. Re3+ {[%clk 0:00:50]} 1-0


[Site "https://www.chess.com"]